[Event "Azerbaijan Men Championship 2024"]
[Site "Baku"]
[Date "2024.04.14"]
[Round "4.2"]
[White "Iskandarov, Misratdin"]
[Black "Babazada, Khazar"]
[Result "1-0"]
[ECO "C54"]
[WhiteElo "2538"]
[BlackElo "2474"]
[Annotator "TA"]
[PlyCount "131"]
[EventDate "2024.04.11"]
[EventType "swiss"]
[EventCountry "AZE"]
[SourceTitle "playchess.com"]
[Source "ChessBase"]
[SourceQuality "1"]
[TimeControl "40/5400+30:1800+30"]

{[%evp 59,131,10,11,0,9,8,6,2,25,16,34,13,18,17,10,0,14,0,19,12,6,8,39,33,45,28,95,74,93,102,94,98,100,97,109,100,109,105,167,167,167,167,167,167,153,112,368,368,368,342,617,609,558,568,581,581,580,561,541,445,607,384,383,82,82,82,82,36,12136,5687,12835,11919,29973,29968]} 1. e4 {[%emt 0:00:13]} e5 {[%emt 0:00:45]} 2. Nf3 {[%emt 0:00:08]} Nc6 {[%emt 0:00:08]} 3. Bc4 {[%emt 0:00:12]} Nf6 {[%emt 0:02:17]} 4. d3 {[%emt 0:00:28]} Bc5 {[%emt 0:01:12]} 5. c3 {[%emt 0:00:11]} d6 {[%emt 0:00:09]} 6. O-O {[%emt 0:01:14]} O-O {[%emt 0:01:08]} 7. Bb3 {[%emt 0:05:16]} a6 {[%emt 0:06:59]} 8. Re1 {[%emt 0:00:56]} Ba7 {[%emt 0:00:48]} 9. h3 {[%emt 0:07:52]} Re8 {[%emt 0:01:00]} 10. Nbd2 {[%emt 0:01:45]} Be6 {[%emt 0:00:45]} 11. Nf1 {[%emt 0:04:30]} h6 {[%emt 0:03:11]} 12. Bxe6 {[%emt 0:03:31] C54: Giuoco Piano: 4 c3 Nf6, main lines with 5 d4 and 5 d3.} Rxe6 {[%emt 0:00:16]} 13. Ng3 {[%emt 0:00:09]} d5 {[%emt 0:00:27]} 14. Qe2 {[%emt 0:00:31]} Qd7 {[%emt 0:03:47]} 15. Nh4 {[%emt 0:09:28]} Rd8 {[%emt 0:02:37]} 16. Nhf5 {[%emt 0:01:39]} dxe4 {[%emt 0:02:00]} 17. dxe4 {[%emt 0:00:24]} Qd3 {[%emt 0:00:26]} 18. Kf1 {[%emt 0:05:15]} Qxe2+ $146 {[%emt 0:04:49]} ({Predecessor:} 18... Ree8 19. Qxd3 Rxd3 20. Ke2 Red8 21. f3 a5 22. a4 R3d7 23. Ne3 Ne8 24. Ngf5 Nd6 25. Nxd6 Rxd6 {1-0 Anand,V (2800)-Hammer,J (2636) Arctic Stars Prelim rapid 2010 (1)}) 19. Kxe2 {[%emt 0:00:14]} Ne7 {[%emt 0:00:37]} 20. f3 {[%emt 0:11:38]} Ne8 {[%emt 0:01:40]} 21. Be3 {[%emt 0:04:32]} Bxe3 {[%emt 0:00:23]} 22. Nxe3 {[%emt 0:00:34]} Ng6 {[%emt 0:03:05]} 23. Nh5 {[%emt 0:00:29]} Nf6 {[%emt 0:01:09]} 24. Nxf6+ {[%emt 0:00:16]} Rxf6 {[%emt 0:00:03]} 25. g3 {[%emt 0:00:48]} Rfd6 {[%emt 0:00:45]} 26. Red1 {[%emt 0:05:40]} Rxd1 {[%emt 0:01:15]} 27. Nxd1 {[%emt 0:00:11]} Ne7 {[%emt 0:01:40]} 28. Ne3 {[%emt 0:00:08]} f6 {[%emt 0:00:23]} 29. a4 {[%emt 0:00:26]} Kf7 {[%emt 0:00:55]} 30. a5 {[%emt 0:00:34]} Ke6 {[%emt 0:00:52]} 31. Ra4 {[%emt 0:03:42]} h5 {[%emt 0:00:36]} 32. Rb4 {[%emt 0:02:38]} Rb8 {[%emt 0:00:21]} 33. f4 {[%emt 0:01:32]} g6 {[%emt 0:02:50]} 34. Rc4 {[%emt 0:02:56]} Kd6 {[%emt 0:01:20]} 35. Kf3 {[%emt 0:02:50]} Rh8 {[%emt 0:18:46]} 36. Rb4 {[%emt 0:01:46]} Rb8 $1 {[%emt 0:01:26]} 37. Rc4 {[%emt 0:03:05]} Rf8 {[%emt 0:03:33]} 38. Rb4 {[%emt 0:00:43]} Rb8 $1 {[%emt 0:00:14]} 39. h4 {[%emt 0:03:26]} Ke6 {[%emt 0:04:28]} 40. Rc4 {[%emt 0:00:00]} Rc8 {[%emt 0:00:00]} 41. Rc5 {[%emt 0:01:51]} exf4 {[%emt 0:03:36]} 42. gxf4 {[%emt 0:03:10]} Nc6 {[%emt 0:02:39]} (42... c6 $11 {keeps the balance.}) 43. b4 {[%emt 0:02:27]} Ne7 {[%emt 0:02:42]} 44. f5+ $1 {[%emt 0:06:31]} gxf5 {[%emt 0:00:52]} 45. Nxf5 {[%emt 0:01:12]} (45. exf5+ Kd6 $18) 45... Nxf5 {[%emt 0:10:03]} 46. Rxf5 {[%emt 0:00:04]} (46. exf5+ $6 Kd6 $11) 46... Rh8 {[%emt 0:00:04]} 47. Ke3 {[%emt 0:00:29]} Rh7 {[%emt 0:04:41]} 48. Kd4 {[%emt 0:00:07]} Rd7+ {[%emt 0:01:44]} (48... b6 $16 {keeps fighting.} 49. Ke3 Ke7) 49. Kc4 $18 {[%emt 0:00:15]} b5+ {[%emt 0:06:16]} 50. Kb3 {[%emt 0:09:11]} Rd3 {[%emt 0:01:05]} 51. Rxh5 {[%emt 0:00:19]} Re3 {[%emt 0:00:23] [#]} 52. Rh7 $1 {[%emt 0:00:33]} Kd6 $2 {[%emt 0:02:24][%mdl 8192]} (52... c6 $16) 53. Rf7 $18 {[%emt 0:00:11]} Rxe4 {[%emt 0:01:44]} 54. Rxf6+ {[%emt 0:00:05]} Kd7 $2 {[%emt 0:02:20]} (54... Ke7 55. Rh6 (55. Rxa6 Rxh4 56. Rg6 Kd7 $14) 55... Kd7) 55. h5 $18 {[%emt 0:01:07]} (55. Rxa6 Rxh4 56. Ra8 c6 $16) 55... Rh4 {[%emt 0:00:08]} 56. h6 {[%emt 0:00:07]} ({Weaker is} 56. Rxa6 Rxh5 57. Rf6 Kc8 $16) 56... c6 {[%emt 0:00:01]} 57. Kc2 {[%emt 0:00:33]} Rh3 {[%emt 0:00:01]} 58. Kd2 {[%emt 0:00:18]} Kc7 {[%emt 0:00:03]} 59. Re6 {[%emt 0:07:02]} Kd7 {[%emt 0:00:09]} 60. Rg6 {[%emt 0:00:06]} Kc7 {[%emt 0:00:07]} 61. Rg7+ $2 {[%emt 0:00:18]} (61. Rf6 $18 {and White stays clearly on top. Black must now prevent Re6.} Kd7 62. Kc2) 61... Kd6 $16 {[%emt 0:00:07]} 62. h7 {[%emt 0:00:04]} c5 {[%emt 0:09:56] [#]} 63. c4 {[%emt 0:09:03]} (63. Rg6+ $1 $16 Kd5 64. Rg5+ (64. Rxa6 cxb4 65. cxb4 Rxh7 $11) 64... Kc6 65. Rxc5+ Kb7 66. Rf5 (66. c4 bxc4 67. h8=Q Rxh8 $11) 66... Rxh7 67. Rf4) 63... Kc6 $2 {[%emt 0:03:10][%mdl 8192]} (63... Rh2+ $14 64. Kd1 Rh1+ 65. Kd2 Rh2+ 66. Ke3 bxc4 67. Rg6+ Kd7) 64. Rg6+ $18 {[%emt 0:00:32]} Kb7 {[%emt 0:00:14]} 65. cxb5 {[%emt 0:00:26]} (65. bxc5 bxc4 66. Rb6+ Ka7 $16) 65... axb5 {[%emt 0:02:46]} 66. Rg7+ {[%emt 0:00:13]} 1-0

[Event "Azerbaijan Men Championship 2024"]
[Site "Baku"]
[Date "2024.04.14"]
[Round "4.3"]
[White "Manafov, Vugar"]
[Black "Guliyev, Namig"]
[Result "1/2-1/2"]
[ECO "D21"]
[WhiteElo "2424"]
[BlackElo "2509"]
[Annotator "TA"]
[PlyCount "60"]
[EventDate "2024.04.11"]
[EventType "swiss"]
[EventCountry "AZE"]
[SourceTitle "playchess.com"]
[Source "ChessBase"]
[SourceQuality "1"]
[TimeControl "40/5400+30:1800+30"]

{[%evp 9,60,0,0,-9,8,-13,20,18,14,-8,0,0,4,0,14,0,14,9,0,0,14,14,54,0,0,0,13,7,34,41,39,10,64,33,40,32,41,23,38,37,47,41,56,43,42,41,58,0,50,0,65,0,39]} 1. d4 {[%emt 0:00:40]} d5 {[%emt 0:00:10][%cal Bd7d5,Bd5c4][%mdl 32]} 2. c4 {[%emt 0:00:17]} dxc4 {[%emt 0:00:15]} 3. Nf3 {[%emt 0:00:26]} a6 {[%emt 0:01:34]} 4. a4 {[%emt 0:02:15]} Nf6 {[%emt 0:01:03]} 5. e3 {[%emt 0:00:28]} Bg4 {[%emt 0:05:35][%cal Oc7c5]} 6. Nbd2 {[%emt 0:08:59]} e6 {[%emt 0:04:49]} 7. Nxc4 {[%emt 0:01:45]} Bb4+ {[%emt 0:05:51]} 8. Bd2 {[%emt 0:00:24]} Bxf3 {[%emt 0:00:41]} 9. gxf3 {[%emt 0:01:48]} Bxd2+ {[%emt 0:07:03]} 10. Qxd2 {[%emt 0:00:18]} O-O {[%emt 0:00:07]} 11. Bg2 {[%emt 0:03:45]} Nbd7 {[%emt 0:01:12]} 12. f4 {[%emt 0:01:45]} Rb8 {[%emt 0:00:59]} 13. b4 {[%emt 0:00:59]} Nd5 {[%emt 0:01:04]} 14. O-O {[%emt 0:02:52]} N7b6 {[%emt 0:03:14]} 15. Ne5 {[%emt 0:04:00][%cal Bc4e5,Be5d3,Bd3c5][%mdl 32]} Qd6 {[%emt 0:01:07]} 16. a5 {[%emt 0:01:53]} (16. Rfb1 $14) 16... Nd7 $11 {[%emt 0:03:05]} 17. Nd3 {[%emt 0:00:35]} f5 {[%emt 0:02:03]} 18. Bf3 {[%emt 0:03:46][%cal Bg2f3,Bf3d1,Bd1b3,Bb3c4][%mdl 32]} Ne7 {[%emt 0:05:32]} 19. Nc5 {[%emt 0:09:34]} c6 {[%emt 0:00:39]} 20. Kh1 {[%emt 0:10:00]} Ng6 {[%emt 0:04:03]} (20... Rf6 $11) 21. Bd1 {[%emt 0:06:55] White is much more active.} Kh8 {[%emt 0:01:08][%cal Oe6e5]} 22. Qe2 {[%emt 0:05:08]} Nf6 {[%emt 0:04:38]} 23. Bb3 {[%emt 0:02:16]} Rfe8 {[%emt 0:03:21][%cal Bf8e8,Be8e7,Be7c7][%mdl 32]} 24. Rg1 {[%emt 0:01:48]} Re7 {[%emt 0:03:49]} 25. Rg3 {[%emt 0:03:16]} Rbe8 {[%emt 0:08:54]} 26. Rag1 {[%emt 0:01:42]} (26. Rxg6 $5 hxg6 27. Bc4 $11) 26... Nf8 {[%emt 0:01:07]} 27. Bc4 {[%emt 0:10:01]} Rc7 {[%emt 0:01:22]} 28. Bb3 {[%emt 0:00:44]} Rce7 $1 {[%emt 0:00:07]} 29. Bc4 {[%emt 0:01:46]} Rc7 $1 {[%emt 0:00:09]} 30. Bb3 {[%emt 0:05:17]} Rce7 {[%emt 0:00:24] Weighted Error Value: White=0.18 (very precise) /Black=0.13 (very precise) .  Mistake:       	White=1     	Black=1      Inaccurate:     	White=3     	Black=3      OK:         	White=4     	Black=3      Best:        	White=1     	Black=1      Strong:       	---       	Black=2} 1/2-1/2

[Event "Azerbaijan Men Championship 2024"]
[Site "Baku"]
[Date "2024.04.14"]
[Round "4.4"]
[White "Samadov, Read"]
[Black "Suleymanli, Suleyman"]
[Result "1-0"]
[ECO "A31"]
[WhiteElo "2502"]
[BlackElo "2246"]
[Annotator "TA"]
[PlyCount "81"]
[EventDate "2024.04.11"]
[EventType "swiss"]
[EventCountry "AZE"]
[SourceTitle "playchess.com"]
[Source "ChessBase"]
[SourceQuality "1"]
[TimeControl "40/5400+30:1800+30"]

{[%evp 10,81,45,19,26,31,16,29,18,29,110,126,100,102,128,68,73,89,77,64,65,51,62,54,64,69,71,78,92,86,99,88,89,94,103,89,93,97,91,75,70,55,97,81,114,112,120,112,147,130,152,147,475,450,477,484,499,489,534,464,566,581,595,554,643,447,795,767,921,839,6279,5861,29989,29985]} 1. Nf3 {[%emt 0:00:03]} Nf6 {[%emt 0:00:05]} 2. c4 {[%emt 0:00:20]} c5 {[%emt 0:00:24]} 3. Nc3 {[%emt 0:00:59]} Nc6 {[%emt 0:00:59]} 4. d4 {[%emt 0:03:33]} cxd4 {[%emt 0:06:45]} 5. Nxd4 {[%emt 0:00:06]} d5 {[%emt 0:08:24]} 6. cxd5 {[%emt 0:08:12]} (6. Qa4 $5) 6... Nxd5 {[%emt 0:00:15]} 7. Nxc6 {[%emt 0:01:05]} bxc6 {[%emt 0:00:09]} 8. Bd2 {[%emt 0:02:16]} e5 {[%emt 0:02:55] White has an edge.} 9. Qa4 {[%emt 0:11:23]} Qd6 {[%emt 0:03:22] [#]} (9... Bd7 $11) 10. Nxd5 $1 $16 {[%emt 0:02:13]} Qxd5 {[%emt 0:00:02]} 11. e4 {[%emt 0:02:41]} Qd6 {[%emt 0:01:11] [#]} 12. Be2 {[%emt 0:03:27]} (12. O-O-O $1 $16) 12... Be7 $14 {[%emt 0:06:03] [#] Repels Bg5} 13. O-O $1 {[%emt 0:01:17][%cal Od2b4]} O-O {[%emt 0:00:48]} 14. Bc3 {[%emt 0:04:52]} Qc7 {[%emt 0:02:39]} 15. Rac1 {[%emt 0:06:38]} Be6 {[%emt 0:05:43]} 16. Rfd1 {[%emt 0:04:42]} a5 {[%emt 0:03:12]} 17. Bc4 {[%emt 0:04:14]} Bxc4 {[%emt 0:01:43]} 18. Qxc4 {[%emt 0:00:06]} Bb4 {[%emt 0:05:42]} 19. Rd5 {[%emt 0:07:14]} Bd6 {[%emt 0:15:44]} 20. Rd3 {[%emt 0:02:36][%cal Bd5d3,Bd3c3,Bc3c5][%mdl 32]} Bb4 {[%emt 0:01:42]} 21. g3 {[%emt 0:04:24]} Bxc3 {[%emt 0:03:39]} 22. Rdxc3 {[%emt 0:00:37]} Rfb8 {[%emt 0:04:13]} 23. b3 {[%emt 0:04:09]} h6 {[%emt 0:00:26]} 24. Qe2 {[%emt 0:02:38]} Rb6 {[%emt 0:01:00][%cal Bb8b6,Bb6a6,Ba6a7,Ba7c7][%mdl 32]} 25. Qc2 {[%emt 0:01:49][%cal Rc3c6]} Rd8 {[%emt 0:09:41][%cal Ba8d8,Bd8d6,Bd6e6][%mdl 32]} 26. Kg2 {[%emt 0:01:20]} (26. Rxc6 $2 Rxc6 27. Qxc6 Rd1+ 28. Rxd1 Qxc6 $19) 26... Rd6 {[%emt 0:10:36]} 27. Rc5 {[%emt 0:01:44][%csl LRa5,LRe5]} Re6 {[%emt 0:01:02]} 28. Qc3 {[%emt 0:02:54]} (28. Rxa5 Rxb3 29. Qd2 Rb8 $14) 28... Ra6 {[%emt 0:00:04]} 29. Rd1 {[%emt 0:00:54]} a4 {[%emt 0:03:20]} 30. b4 $36 {[%emt 0:00:27][%cal Bb3b4,Bb4b5][%mdl 2080] Keeping Black busy. White is much more active.} Qb8 $2 {[%emt 0:01:32][%mdl 8192] [#] A mistake that costs the game.} (30... Qe7 $16 31. a3 Qf6) 31. b5 $1 $18 {[%emt 0:00:27][%mdl 512]} Ra7 {[%emt 0:00:41]} 32. bxc6 {[%emt 0:01:06] Strongly threatening c7.} Rc7 {[%emt 0:00:08]} 33. Rd7 {[%emt 0:01:11]} (33. Rxe5 Rcxc6 34. Rc5 Rxc5 35. Qxc5 Rxe4 $11) 33... Kh7 {[%emt 0:01:41]} 34. a3 {[%emt 0:02:18]} (34. Rxe5 Rexc6 35. Qd4 Rxd7 36. Qxd7 Qxe5 $18) 34... Qb6 {[%emt 0:00:15]} 35. Rxc7 {[%emt 0:00:52]} ({Weaker is} 35. Rxe5 Rexc6 36. Rxc7 Qxc7 $16) 35... Qxc7 {[%emt 0:00:00][%mdl 4096] Endgame. KQR-KQR} 36. Qc4 {[%emt 0:00:30]} Rf6 {[%emt 0:01:36]} 37. Qxa4 {[%emt 0:00:55] Qc2 is the strong threat.} Rd6 {[%emt 0:00:22]} (37... h5 $142 38. h4 Rd6) 38. Qb5 {[%emt 0:01:14]} Rd2 {[%emt 0:00:12]} 39. Rxe5 {[%emt 0:00:59] And now Re8 would win.} Qa7 {[%emt 0:00:29]} 40. Qc5 {[%emt 0:00:00]} Qa6 {[%emt 0:00:00]} 41. Re7 {[%emt 0:02:17] Weighted Error Value: White=0.11 (very precise) /Black=0.56.  Loses game:     	---       	Black=1      Mistake:       	White=1     	Black=2      Inaccurate:     	---       	Black=3      OK:         	White=12    	Black=5      Best:        	White=2     	Black=2      Strong:       	White=1     	---        Brilliant:      	White=1     	---} 1-0

[Event "Azerbaijan Men Championship 2024"]
[Site "Baku"]
[Date "2024.04.14"]
[Round "4.5"]
[White "Gadimbayli, Abdulla"]
[Black "Ibrahimli, Murad"]
[Result "1/2-1/2"]
[ECO "C77"]
[WhiteElo "2489"]
[BlackElo "2396"]
[Annotator "TA"]
[PlyCount "73"]
[EventDate "2024.04.11"]
[EventType "swiss"]
[EventCountry "AZE"]
[SourceTitle "playchess.com"]
[Source "ChessBase"]
[SourceQuality "1"]
[TimeControl "40/5400+30:1800+30"]

{[%evp 11,73,13,9,0,0,0,0,0,16,8,25,21,33,25,31,23,31,20,40,21,31,9,17,8,43,0,0,0,0,0,0,0,0,0,0,0,0,0,0,0,0,0,0,0,0,0,0,0,0,0,0,0,0,0,0,0,0,0,0,0,0,0,0,-71]} 1. e4 {[%emt 0:00:52]} e5 {[%emt 0:00:53]} 2. Nf3 {[%emt 0:00:28]} Nc6 {[%emt 0:00:06]} 3. Bb5 {[%emt 0:00:36][%cal Bf1b5,Bb5a4,Ba4b3][%mdl 32]} a6 {[%emt 0:01:03]} 4. Ba4 {[%emt 0:00:05]} Nf6 {[%emt 0:00:14]} 5. Nc3 {[%emt 0:00:36]} b5 {[%emt 0:01:35]} 6. Bb3 {[%emt 0:00:08]} Be7 {[%emt 0:00:25]} 7. a4 {[%emt 0:01:43]} b4 {[%emt 0:07:03]} 8. Nd5 {[%emt 0:00:40]} d6 {[%emt 0:01:14]} 9. d4 {[%emt 0:06:54]} O-O {[%emt 0:10:34]} 10. dxe5 {[%emt 0:08:12]} Nxe4 {[%emt 0:12:12]} 11. Nxe7+ {[%emt 0:15:50]} Nxe7 {[%emt 0:00:10]} 12. exd6 {[%emt 0:02:26]} Qxd6 {[%emt 0:02:40]} 13. Qxd6 {[%emt 0:15:04]} cxd6 {[%emt 0:02:56]} 14. O-O {[%emt 0:13:52]} Nc5 {[%emt 0:17:53]} 15. Bf4 {[%emt 0:02:16]} Nxb3 {[%emt 0:02:26]} 16. cxb3 {[%emt 0:00:11]} Rd8 {[%emt 0:02:33]} 17. Rfd1 {[%emt 0:02:43]} Nf5 {[%emt 0:04:54]} 18. Nd4 {[%emt 0:04:07]} Nxd4 {[%emt 0:00:40] The position is equal.} 19. Rxd4 {[%emt 0:00:02]} a5 $1 {[%emt 0:00:23]} 20. Rxd6 {[%emt 0:05:47]} Rxd6 {[%emt 0:00:12]} 21. Bxd6 $11 {[%emt 0:00:06][%mdl 4096] Endgame. KRB-KRB} Be6 {[%emt 0:00:04]} 22. h3 {[%emt 0:00:34]} Bxb3 {[%emt 0:00:19]} 23. Bc7 {[%emt 0:00:15]} f6 {[%emt 0:00:13]} 24. Rc1 {[%emt 0:00:54]} Rc8 {[%emt 0:00:47]} 25. Rc5 {[%emt 0:00:05]} Kf7 {[%emt 0:00:09]} 26. Bb6 {[%emt 0:00:23]} Rxc5 {[%emt 0:00:05]} 27. Bxc5 {[%emt 0:00:03]} Bxa4 {[%emt 0:00:07] KB-KB} 28. Bb6 {[%emt 0:00:01]} Bb5 {[%emt 0:00:12]} 29. Bxa5 {[%emt 0:00:04]} b3 {[%emt 0:00:06]} 30. f3 {[%emt 0:00:03]} h5 {[%emt 0:00:06]} 31. Kf2 {[%emt 0:00:03]} Ke6 {[%emt 0:00:07]} 32. Ke3 {[%emt 0:00:05]} Bf1 {[%emt 0:00:06]} 33. Kf2 {[%emt 0:00:03]} Bb5 {[%emt 0:00:05]} 34. Ke3 {[%emt 0:00:04]} Bf1 {[%emt 0:00:06]} 35. Kf2 {[%emt 0:00:03]} Bb5 {[%emt 0:00:06]} 36. Ke3 {[%emt 0:00:03]} Bf1 {[%emt 0:00:08]} 37. Ke4 {[%emt 0:23:39] Weighted Error Value: White=0.03 (flawless) /Black=0.04 (flawless) .  Mistake:       	White=1     	---        Inaccurate:     	White=1     	Black=1      OK:         	White=15    	Black=13     Best:        	White=3     	---        Strong:       	---       	Black=1} (37. Kf2 $11 {keeps the balance.} Ba6 38. g4) 1/2-1/2

[Event "Azerbaijan Men Championship 2024"]
[Site "Baku"]
[Date "2024.04.14"]
[Round "4.6"]
[White "Rustamov, Rustam"]
[Black "Rasulov, Vugar"]
[Result "0-1"]
[ECO "C64"]
[WhiteElo "2261"]
[BlackElo "2551"]
[Annotator "TA"]
[PlyCount "54"]
[EventDate "2024.04.11"]
[EventType "swiss"]
[EventCountry "AZE"]
[SourceTitle "playchess.com"]
[Source "ChessBase"]
[SourceQuality "1"]
[TimeControl "40/5400+30:1800+30"]

{[%evp 12,54,30,0,0,3,14,0,0,-6,0,-1,-6,-10,-8,-9,-14,-15,-8,-27,0,-9,-6,-16,-9,-181,-181,-163,-164,-183,-189,-270,-262,-597,-300,-29993,-29994,-29994,-29979,-29995,-29996,-29996,-29986,-29997,-29998]} 1. e4 {[%emt 0:00:19]} e5 {[%emt 0:00:29]} 2. Nf3 {[%emt 0:00:45]} Nc6 {[%emt 0:00:08]} 3. Bb5 {[%emt 0:00:04]} Bc5 {[%emt 0:00:33]} 4. O-O {[%emt 0:03:11]} Nd4 {[%emt 0:00:08]} 5. Nxd4 {[%emt 0:00:32]} Bxd4 {[%emt 0:00:07]} 6. c3 {[%emt 0:03:27]} Bb6 {[%emt 0:00:57]} 7. d3 {[%emt 0:03:28]} c6 {[%emt 0:00:12]} 8. Ba4 {[%emt 0:00:31]} Nf6 {[%emt 0:00:08]} 9. Nd2 {[%emt 0:01:01][%cal Bb1d2,Bd2f3,Bf3e5][%mdl 32]} O-O {[%emt 0:00:17] The position is equal.} 10. Nf3 {[%emt 0:02:16]} d5 {[%emt 0:04:48]} 11. Nxe5 {[%emt 0:10:38]} Re8 {[%emt 0:02:05]} 12. d4 {[%emt 0:04:46]} Nxe4 {[%emt 0:00:40][%cal Oe8e5]} 13. Bf4 {[%emt 0:08:36]} Qf6 {[%emt 0:08:12]} 14. Qf3 {[%emt 0:04:50]} h6 {[%emt 0:01:23]} 15. Rfe1 {[%emt 0:07:13]} Bf5 {[%emt 0:01:57]} 16. h3 {[%emt 0:06:42]} Re7 {[%emt 0:03:07]} 17. Rad1 {[%emt 0:05:17]} Rae8 {[%emt 0:04:09]} 18. Bc2 $2 {[%emt 0:01:39] [#] Now White is beyond hope.} (18. Re3 $11) 18... Nxf2 $1 $19 {[%emt 0:04:05][%mdl 512]} 19. Qxf2 {[%emt 0:14:21]} Bxc2 {[%emt 0:00:15]} 20. Qxc2 {[%emt 0:00:14] And now Qf2 would win.} Qxf4 {[%emt 0:00:07]} 21. Kh1 {[%emt 0:00:01]} (21. Nd3 $142 Rxe1+ 22. Rxe1 Rxe1+ 23. Nxe1) 21... Bc7 {[%emt 0:00:53]} 22. Qb3 $2 {[%emt 0:00:51]} (22. Kg1 {is a better chance.}) 22... Qg3 {[%emt 0:00:57] Hoping for ...f6.} 23. Rf1 $2 {[%emt 0:01:06] [#]} (23. c4 $19 Qxb3 24. axb3) 23... Rxe5 {[%emt 0:00:56] Black mates.} 24. dxe5 {[%emt 0:00:19]} Qxe5 {[%emt 0:00:49][%csl Gc7][%cal Re5h2]} 25. Kg1 {[%emt 0:00:13]} Qh2+ {[%emt 0:00:10]} 26. Kf2 {[%emt 0:00:05] White is weak on the dark squares} Qg3+ {[%emt 0:00:11]} 27. Kg1 {[%emt 0:00:05]} Re2 {[%emt 0:00:08] Weighted Error Value: White=0.77/Black=0.19 (very precise) .  Loses game:     	White=1     	---        Mistake:       	White=3     	---        Inaccurate:     	---       	Black=1      OK:         	White=5     	Black=8      Best:        	---       	Black=3} 0-1

[Event "Azerbaijan Men Championship 2024"]
[Site "Baku"]
[Date "2024.04.14"]
[Round "4.7"]
[White "Abdulov, Orkhan"]
[Black "Sadikhov, Ulvi"]
[Result "1/2-1/2"]
[ECO "B45"]
[WhiteElo "2401"]
[BlackElo "2497"]
[Annotator "TA"]
[PlyCount "88"]
[EventDate "2024.04.11"]
[EventType "swiss"]
[EventCountry "AZE"]
[SourceTitle "playchess.com"]
[Source "ChessBase"]
[SourceQuality "1"]
[TimeControl "40/5400+30:1800+30"]

{[%evp 15,88,2,42,-28,-29,-24,-27,-63,-57,-83,-72,-76,-67,-89,-35,-35,-42,-46,0,0,0,0,0,0,-4,0,0,0,0,0,0,0,0,0,0,0,0,0,0,0,0,-4,0,-14,0,0,77,66,127,135,129,127,117,123,118,133,172,71,70,8,8,8,145,146,212,70,102,56,92,8,8,8,8,8,8]} 1. e4 {[%emt 1:03:54]} c5 {[%emt 1:03:32]} 2. Nf3 {[%emt 0:00:30]} e6 {[%emt 0:00:30]} 3. d4 {[%emt 0:00:30]} cxd4 {[%emt 0:00:30]} 4. Nxd4 {[%emt 0:00:30]} Nf6 {[%emt 0:00:30]} 5. Nc3 {[%emt 0:00:30]} Nc6 {[%emt 0:00:30]} 6. Nxc6 {[%emt 0:00:30]} bxc6 {[%emt 0:00:30]} 7. e5 {[%emt 0:00:30]} Nd5 {[%emt 0:00:30]} 8. Ne4 {[%emt 0:00:30]} Bb7 {[%emt 0:00:30]} 9. a3 {[%emt 0:00:30]} (9. Be2 $14) 9... Qc7 $11 {[%emt 0:00:30]} 10. f4 {[%emt 0:00:30]} c5 $1 {[%emt 0:00:30]} 11. Qd3 {[%emt 0:00:30] Black has an edge.} Qc6 {[%emt 0:00:30][%cal Od5f4]} 12. Nd6+ {[%emt 0:00:30]} Bxd6 {[%emt 0:00:30]} 13. exd6 {[%emt 0:00:30]} O-O {[%emt 0:00:30]} (13... Qxd6 14. c4 $16) 14. Be2 {[%emt 0:00:30]} c4 {[%emt 0:00:30]} ({Inferior is} 14... Qxd6 15. c4 $16) (14... Rab8 $17 {[%cal Od5f6]} 15. b3 Qb6 (15... Qxd6 16. c4 $14)) 15. Qxc4 $15 {[%emt 0:00:30]} Qxd6 {[%emt 0:00:30]} 16. Qd3 {[%emt 0:00:30] Hoping for c4.} Rfc8 {[%emt 0:00:30]} 17. c4 {[%emt 0:00:30]} Ba6 {[%emt 0:00:30]} 18. Qd4 {[%emt 0:00:30]} Qb6 {[%emt 0:00:30]} 19. Qxb6 {[%emt 0:00:30]} Nxb6 {[%emt 0:00:30]} 20. b3 {[%emt 0:00:30]} d5 {[%emt 0:00:30]} 21. cxd5 {[%emt 0:00:30]} Bxe2 {[%emt 0:00:30]} 22. Kxe2 {[%emt 0:00:30]} Nxd5 {[%emt 0:00:30][%cal Bb6d5,Bd5c3,Bc3b5,Bb5d4][%mdl 32]} 23. Bd2 {[%emt 0:00:30]} Nc3+ {[%emt 0:00:30]} 24. Kd3 {[%emt 0:00:30]} Nb5 {[%emt 0:00:30]} 25. Rhc1 {[%emt 0:00:30]} Rd8+ {[%emt 0:00:30]} 26. Ke3 {[%emt 0:00:30]} Rd5 {[%emt 0:00:30]} 27. a4 {[%emt 0:00:30]} Nd4 {[%emt 0:00:30]} 28. Rc3 {[%emt 0:00:30]} Rad8 {[%emt 0:00:30] White must now prevent ...Nf5+.} 29. Be1 {[%emt 0:00:30]} e5 {[%emt 0:00:30]} 30. Kf2 {[%emt 0:00:30]} exf4 {[%emt 0:00:30]} (30... e4 $11) 31. Rd1 $1 $16 {[%emt 0:00:30] Rcd3 is the strong threat.} Ne6 {[%emt 0:00:30]} ({Better is} 31... R5d6 $14) 32. Rxd5 {[%emt 0:00:30]} Rxd5 {[%emt 0:00:30][%mdl 4096] Endgame. KRB-KRN} 33. Rc8+ {[%emt 0:00:30]} Rd8 {[%emt 0:00:30]} 34. Rxd8+ {[%emt 0:00:30]} Nxd8 {[%emt 0:00:30] KB-KN} 35. Kf3 $1 {[%emt 0:00:30]} g5 {[%emt 0:00:30]} 36. Bf2 {[%emt 0:00:30]} (36. b4 $18 {has better winning chances.}) 36... a6 {[%emt 0:00:30]} 37. Bb6 {[%emt 0:00:30]} (37. Ke4 $1 $14) 37... Nc6 $1 $11 {[%emt 0:00:30]} 38. Ke4 {[%emt 0:00:30] White wants to play Bc5.} f6 {[%emt 0:00:30]} (38... Kf8 $11 {keeps the balance.}) 39. Kd5 $16 {[%emt 0:00:30][%mdl 1024] White has strong compensation.} Ne5 {[%emt 0:00:30] [#]} (39... Nb4+ $16 {was called for.} 40. Ke6 Kg7) 40. Bd4 {[%emt 0:00:30]} ({White must play} 40. b4 $1 $18) 40... g4 {[%emt 0:00:30] [#]} 41. b4 $1 {[%emt 0:30:30][%cal Oa4a5,Bb3b4,Bb4b5,Bb5a6][%mdl 32] a5! would now be deadly.} Kf7 $1 {[%emt 0:30:30]} 42. a5 {[%emt 0:00:30]} (42. b5 $1 $16 {[%cal Rb5a6]} axb5 43. a5 (43. axb5 Ke7 $11)) 42... Ke7 {[%emt 0:00:30] The position is equal.} 43. b5 {[%emt 0:00:30]} Kd7 {[%emt 0:00:30]} 44. bxa6 {[%emt 0:00:30]} Kc8 {[%emt 0:00:30] Weighted Error Value: White=0.21 (precise) /Black=0.20 (precise) .  Mistake:       	White=4     	Black=5      Inaccurate:     	White=2     	Black=2      OK:         	White=15    	Black=8      Best:        	White=7     	Black=7      Strong:       	White=3     	Black=3} 1/2-1/2